bitfinex-derivatives/quotes_SOLF0:USTF0_20240918
["timestamp","ask_amount","ask_price","bid_price","bid_amount"]
[1726654941377,0.3799,128.61,128.51,17.94209764]
[1726654941575,155.66,128.62,128.51,17.94209764]
[1726654941781,155.66,128.62,128.5,1.8539]
[1726654942180,155.66,128.62,128.53,3.8894]
[1726654942382,155.66,128.62,128.54,3.6018]
[1726654945485,155.66,128.62,128.54,7.4909]
[1726654946484,155.66,128.62,128.54,3.6018]
[1726654946685,155.66,128.62,128.55,1.7727]
[1726654946880,155.66,128.62,128.55,5.6616]
[1726654947081,155.66,128.62,128.55,1.7727]
[1726654947989,155.66,128.62,128.57,3.8881]
[1726654948585,155.66,128.62,128.58,3.8879]
[1726654948788,155.66,128.62,128.59,3.6057]
[1726654950479,155.66,128.62,128.59,7.4934]
[1726654951086,155.66,128.62,128.59,3.6057]
[1726654952683,155.66,128.62,128.5,10.82720065]
[1726654952897,0.3823,128.61,128.51,38.33948563]
[1726654953189,0.3823,128.61,128.51,17.9342366]
[1726654953392,0.3823,128.61,128.49,5.2323]
[1726654953393,0.3823,128.61,128.52,34.45163258]
[1726654953585,0.3823,128.61,128.53,17.9342366]
[1726654953887,0.3823,128.61,128.5,3.8902]
[1726654954089,0.3823,128.61,128.51,34.45851689]
[1726654954290,0.3823,128.61,128.52,34.45851689]
[1726654954490,0.3823,128.61,128.53,17.94086751]
[1726654954690,0.3823,128.61,128.54,17.94086751]
[1726654954892,0.3823,128.61,128.49,5.2323]
[1726654954893,0.3823,128.61,128.52,3.8897]
[1726654955093,0.3823,128.61,128.53,34.45788383]
[1726654955292,155.66,128.62,128.54,17.94131893]
[1726654955685,155.66,128.62,128.55,17.94131893]
[1726654955884,155.66,128.62,128.53,3.8894]
[1726654956091,155.66,128.62,128.54,37.92346486]
[1726654956292,155.66,128.62,128.55,34.45686486]
[1726654956590,155.66,128.62,128.56,17.94076244]
[1726654956786,155.66,128.62,128.57,17.93986992]
[1726654956994,155.66,128.62,128.54,3.4666]
[1726654957184,155.66,128.62,128.55,34.45507986]
[1726654957386,155.66,128.62,128.56,17.93986992]
[1726654957591,155.66,128.62,128.54,3.4666]
[1726654957786,155.66,128.62,128.55,34.45609206]
[1726654957988,155.66,128.62,128.56,17.94037602]
[1726654958189,155.66,128.62,128.57,17.94037602]
[1726654958391,155.66,128.62,128.54,3.4666]
[1726654958587,155.66,128.62,128.55,34.45462787]
[1726654958993,155.66,128.62,128.56,16.51511058]
[1726654959188,155.66,128.62,128.56,17.93951729]
[1726654959398,155.66,128.62,128.57,17.93951729]
[1726654959692,155.66,128.62,128.54,3.4666]
[1726654959889,155.66,128.62,128.55,34.4551428]
[1726654960088,155.66,128.62,128.54,3.4666]
[1726654960089,155.66,128.62,128.56,34.4551428]
[1726654960286,155.66,128.62,128.57,17.93942676]
[1726654960485,155.66,128.62,128.54,3.4666]
[1726654960690,155.66,128.62,128.55,34.4552484]
[1726654960993,155.66,128.62,128.56,34.4552484]
[1726654961392,155.66,128.62,128.57,17.93972992]
[1726654961692,155.66,128.62,128.54,3.4666]
[1726654961894,155.66,128.62,128.55,34.45535616]
[1726654962092,155.66,128.62,128.56,34.45535616]
[1726654962592,155.66,128.62,128.57,17.9397838]
[1726654963092,155.66,128.62,128.58,17.9394191]
[1726654963493,155.66,128.62,128.55,3.8888]
[1726654963791,155.66,128.62,128.56,34.45374033]
[1726654963991,155.66,128.62,128.57,34.45374033]
[1726654964193,155.66,128.62,128.58,38.34174033]
[1726654964396,155.66,128.69,128.59,38.08654033]
[1726654964601,155.66,128.69,128.6,34.45374033]
[1726654964894,155.66,128.69,128.61,34.4489316]
[1726654965099,155.66,128.69,128.62,17.93902316]
[1726654965290,155.66,128.69,128.59,7.5203]
[1726654965490,155.66,128.69,128.6,34.44423207]
[1726654965889,155.66,128.69,128.61,34.44423207]
[1726654966094,155.66,128.69,128.61,17.93428374]
[1726654966495,155.66,128.69,128.62,17.93428374]
[1726654966696,155.66,128.69,128.6,1.8421]
[1726654966891,155.66,128.69,128.61,17.93318692]
[1726654967098,155.66,128.69,128.62,17.93318692]
[1726654967299,155.66,128.69,128.6,1.8421]
[1726654967498,155.66,128.69,128.61,17.933165]
[1726654967697,155.66,128.69,128.62,17.933165]
[1726654967897,155.66,128.69,128.6,1.8421]
[1726654968099,155.66,128.69,128.61,17.93324457]
[1726654968300,155.66,128.69,128.6,1.8421]
[1726654968502,155.66,128.69,128.61,17.93331638]
[1726654968801,155.66,128.69,128.62,17.93318777]
[1726654969103,155.66,128.69,128.6,1.8421]
[1726654969299,155.66,128.69,128.61,17.9330289]
[1726654969495,155.66,128.69,128.62,17.9330289]
[1726654969689,155.66,128.69,128.6,1.8421]
[1726654969898,155.66,128.69,128.61,34.4427527]
[1726654970099,155.66,128.69,128.62,17.93297762]
[1726654970296,155.66,128.69,128.6,1.8421]
[1726654970498,155.66,128.69,128.61,17.93308483]
[1726654970693,155.66,128.69,128.62,17.93308483]
[1726654970892,155.66,128.69,128.6,1.8421]
[1726654971097,155.66,128.69,128.61,34.44136493]
[1726654971294,155.66,128.69,128.62,17.93224312]
[1726654971497,155.66,128.69,128.61,3.8869]
[1726654971804,155.66,128.69,128.62,17.93160314]
[1726654971996,155.66,128.69,128.6,1.8421]
[1726654972197,155.66,128.69,128.61,34.43944423]
[1726654972392,155.66,128.69,128.62,17.93129365]
[1726654972798,155.66,128.69,128.61,3.887]
[1726654973205,155.66,128.69,128.62,38.32409257]
[1726654973405,155.66,128.69,128.63,17.9303178]
[1726654973698,155.66,128.69,128.6,1.8421]
[1726654973899,155.66,128.69,128.61,38.32325101]
[1726654974099,155.66,128.69,128.62,34.43635101]
[1726654974300,155.66,128.69,128.63,17.92972905]
[1726654974496,155.66,128.69,128.6,1.8421]
[1726654974692,155.66,128.69,128.61,34.43781812]
[1726654974898,155.66,128.69,128.62,17.93030328]
[1726654975099,155.66,128.69,128.63,17.93030328]
[1726654975602,155.66,128.69,128.6,1.8421]
[1726654975797,155.66,128.69,128.61,38.32304984]
[1726654975999,155.66,128.69,128.62,17.92931316]
[1726654976202,155.66,128.69,128.61,3.8869]
[1726654976606,155.66,128.69,128.62,17.93030581]
[1726654976797,155.66,128.69,128.61,3.8869]
[1726654976997,155.66,128.69,128.62,17.93064901]
[1726654977198,155.66,128.69,128.61,3.8869]
[1726654977499,155.66,128.69,128.62,17.93052524]
[1726654977699,155.66,128.69,128.6,5.7294]
[1726654977899,155.66,128.69,128.61,17.93082944]
[1726654978101,155.66,128.69,128.62,17.93082944]
[1726654978301,155.66,128.69,128.61,3.887]
[1726654978595,155.6,128.75,128.64,3.886]
[1726654978995,155.6,128.75,128.6,1.8421]
[1726654979199,155.6,128.75,128.64,3.8859]
[1726654979400,155.6,128.75,128.65,19.72966618]
[1726654979594,155.6,128.75,128.65,1.8029]
[1726654980196,155.6,128.75,128.65,5.6887]
[1726654980504,155.6,128.75,128.65,1.8029]
[1726654984307,155.6,128.75,128.65,5.6886]
[1726654986203,155.6,128.75,128.66,3.8854]
[1726654987008,155.6,128.75,128.67,3.8851]
[1726654987209,155.6,128.75,128.65,1.8029]
[1726654987404,155.6,128.75,128.66,21.62379685]
[1726654987605,155.6,128.75,128.67,3.8851]
[1726654988208,155.6,128.75,128.66,7.5887]
[1726654988405,155.6,128.75,128.66,3.7033]
[1726654988805,155.6,128.75,128.66,7.5887]
[1726654990007,155.6,128.75,128.65,1.8029]
[1726654991104,155.6,128.75,128.65,5.6887]
[1726654991307,155.6,128.75,128.65,1.8029]
[1726654992105,155.6,128.75,128.59,3.5764]
[1726654992311,155.6,128.75,128.63,3.8863]
[1726654992711,155.6,128.75,128.61,1.7646]
[1726654993312,155.6,128.75,128.62,17.92602727]
[1726654993612,155.6,128.75,128.61,1.7646]
[1726654993805,155.6,128.75,128.62,17.92579908]
[1726654994007,155.6,128.75,128.65,3.8858]
[1726654995816,155.6,128.75,128.61,1.7646]
[1726654995817,155.6,128.75,128.66,3.8855]
[1726654997023,155.6,128.75,128.61,1.7646]
[1726654997821,155.6,128.75,128.59,3.5764]
[1726654998022,1.27979491,128.74,128.59,7.4639]
[1726654998417,155.6,128.75,128.59,7.4639]
[1726654998619,1.27978822,128.74,128.59,1.7427]
[1726654998824,1.27978822,128.74,128.58,3.8879]
[1726654999129,1.27978822,128.74,128.57,1.7735]
[1726654999329,1.27978822,128.74,128.57,5.6616]
[1726654999930,1.27978822,128.74,128.58,3.888]
[1726655001333,1.27961962,128.73,128.58,3.888]
[1726655001635,155.6,128.75,128.58,3.888]
[1726655001828,1.27960854,128.74,128.58,3.888]
[1726655002428,1.27960852,128.73,128.58,3.888]
[1726655002631,2.55921705,128.73,128.58,3.888]
[1726655002832,1.27960852,128.73,128.58,3.888]
[1726655004633,1.27960852,128.73,128.57,5.6616]
[1726655005226,1.27960852,128.73,128.57,1.7735]
[1726655005430,1.27905777,128.72,128.54,3.7291]
[1726655005627,0.3747,128.71,128.54,3.7291]
[1726655005832,1.27905777,128.7,128.54,3.7291]
[1726655006335,0.3747,128.71,128.54,3.7291]
[1726655006733,1.27881002,128.7,128.54,7.6183]
[1726655006934,155.58,128.69,128.54,7.6183]
[1726655007738,155.58,128.69,128.55,3.8888]
[1726655010733,155.58,128.69,128.55,1.8011]
[1726655012634,155.58,128.69,128.55,5.6899]
[1726655014841,155.58,128.69,128.56,3.8885]
[1726655015040,155.58,128.69,128.55,1.8011]
[1726655016036,155.58,128.69,128.56,17.93554835]
[1726655016239,155.58,128.69,128.55,5.6898]
[1726655016643,155.58,128.69,128.55,1.8011]
[1726655017138,155.58,128.69,128.43,187.44056362]
[1726655017139,155.58,128.69,128.44,18.55456866]
[1726655017344,381.58,128.69,128.46,1.8615]
[1726655017545,381.58,128.69,128.51,3.8899]
[1726655017735,1.27863104,128.68,128.52,17.93916591]
[1726655017941,1.27863104,128.68,128.53,17.93916591]
[1726655018143,1.27863172,128.68,128.46,1.8615]
[1726655018446,389.70454523,128.69,128.47,35.88545974]
[1726655018642,389.70454523,128.69,128.47,34.45555525]
[1726655018947,389.70454523,128.69,128.48,35.88548592]
[1726655019143,389.70454523,128.69,128.49,39.49688592]
[1726655019347,389.70454523,128.69,128.5,35.88548592]
[1726655019541,389.70454523,128.69,128.51,34.45555525]
[1726655019741,389.70454523,128.69,128.54,3.8891]
[1726655023049,163.70454523,128.69,128.54,3.8891]
[1726655023438,163.70454523,128.69,128.55,3.8887]
[1726655028851,163.70454523,128.69,128.52,1.7515]
[1726655029246,163.70454523,128.69,128.53,17.93803263]
[1726655029449,163.70454523,128.69,128.54,17.93803263]
[1726655029653,163.70454523,128.69,128.53,3.8893]
[1726655029854,163.70454523,128.69,128.54,17.93903517]
[1726655030157,163.70454523,128.69,128.53,3.8893]
[1726655030357,163.70454523,128.69,128.54,17.93908951]
[1726655030557,163.70454523,128.69,128.53,3.8893]
[1726655030761,163.70454523,128.69,128.54,17.93907167]
[1726655030962,163.70454523,128.69,128.53,3.8893]
[1726655031162,163.70454523,128.69,128.54,17.93907167]
[1726655031461,163.70454523,128.69,128.53,3.8893]
[1726655031659,163.70454523,128.69,128.54,17.93919638]
[1726655031859,163.70454523,128.69,128.53,3.8893]
[1726655032457,163.70454523,128.69,128.54,21.82840605]
[1726655032856,163.70454523,128.69,128.54,3.8891]
[1726655033256,163.70454523,128.69,128.53,3.8894]
[1726655033557,163.70454523,128.69,128.54,17.93961466]
[1726655033758,163.70454523,128.69,128.54,3.8892]
[1726655035062,163.70454523,128.69,128.55,3.8887]
[1726655036950,163.70454523,128.69,128.56,3.8885]
[1726655037250,155.58,128.69,128.56,3.8885]
[1726655038853,155.58,128.69,128.59,3.8875]
[1726655039054,155.58,128.69,128.53,16.51218237]
[1726655039253,155.58,128.69,128.54,37.68647569]
[1726655039560,155.58,128.69,128.57,3.8883]
[1726655040062,155.58,128.69,128.56,3.8884]
[1726655045069,155.58,128.69,128.55,5.5895]
[1726655045266,155.58,128.69,128.55,1.7006]
[1726655045770,155.58,128.69,128.56,3.8886]
[1726655046167,155.58,128.69,128.55,1.7006]
[1726655046359,155.58,128.69,128.57,3.8883]
[1726655046965,155.58,128.69,128.56,3.8884]
[1726655047876,155.58,128.69,128.57,3.8883]
[1726655048570,155.58,128.69,128.56,3.8885]
[1726655051374,155.58,128.69,128.55,1.7006]
[1726655051878,155.58,128.69,128.56,21.82515778]
[1726655052175,155.58,128.69,128.56,3.8885]
[1726655056285,155.58,128.69,128.57,17.9367177]
[1726655056588,155.58,128.69,128.56,3.8885]
[1726655056879,155.58,128.69,128.57,17.93682454]
[1726655057077,155.58,128.69,128.55,1.7006]
[1726655057379,155.58,128.69,128.56,34.44814796]
[1726655057585,155.58,128.69,128.57,17.93595863]
[1726655057783,155.58,128.69,128.58,17.93595863]
[1726655057984,155.58,128.69,128.55,1.7006]
[1726655058186,155.58,128.69,128.56,34.44811226]
[1726655058485,155.58,128.69,128.57,38.33621226]
[1726655058682,155.58,128.69,128.58,17.93594077]
[1726655058881,155.58,128.69,128.57,3.8881]
[1726655059084,155.58,128.69,128.58,17.93579998]
[1726655059383,155.58,128.69,128.57,3.8881]
[1726655059681,155.58,128.69,128.58,17.93579998]
[1726655059881,155.58,128.69,128.57,3.8881]
[1726655060083,155.58,128.69,128.58,17.93623096]
[1726655060278,155.58,128.69,128.57,3.8881]
[1726655060582,155.58,128.69,128.58,17.93623424]
[1726655060883,155.58,128.69,128.52,1.7515]
[1726655061083,155.58,128.69,128.53,35.87947719]
[1726655061274,155.58,128.69,128.55,3.8887]
[1726655061481,155.58,128.69,128.56,34.4497227]
[1726655061883,155.58,128.69,128.57,17.93667543]
[1726655062079,155.58,128.69,128.58,17.93667543]
[1726655062484,155.58,128.69,128.57,16.51304727]
[1726655062784,155.58,128.69,128.58,17.93667544]
[1726655062984,155.58,128.69,128.56,3.8886]
[1726655063182,155.58,128.69,128.57,17.93685347]
[1726655063383,155.58,128.69,128.58,17.93685347]
[1726655063582,155.58,128.69,128.59,17.93685347]
[1726655063881,155.58,128.69,128.56,3.8886]
[1726655064084,155.58,128.69,128.57,34.4499145]
[1726655064386,155.58,128.69,128.58,34.4499086]
[1726655064588,155.58,128.69,128.59,17.93685343]
[1726655064782,155.58,128.69,128.57,3.8882]
[1726655064980,155.58,128.69,128.58,34.44818789]
[1726655065183,155.58,128.69,128.59,17.93599283]
[1726655065379,155.58,128.69,128.6,17.93599283]
[1726655065585,155.58,128.69,128.57,3.8882]
[1726655065885,155.58,128.69,128.58,34.44746587]
[1726655066085,155.58,128.69,128.57,3.8882]
[1726655066086,155.58,128.69,128.59,34.44746587]
[1726655066391,155.58,128.69,128.6,17.9356291]
[1726655066688,155.58,128.69,128.61,17.9356291]
[1726655066887,155.58,128.69,128.57,3.8882]
[1726655067087,155.58,128.69,128.58,34.44767666]
[1726655067393,155.58,128.69,128.59,34.44767666]
[1726655067588,155.58,128.69,128.6,34.44767666]
[1726655067783,155.58,128.69,128.61,17.93560944]
[1726655067987,155.58,128.69,128.52,12.52166866]
[1726655068189,155.58,128.69,128.53,38.03083929]
[1726655068492,155.58,128.69,128.54,38.03123859]
[1726655068683,155.58,128.69,128.55,19.36410662]
[1726655068991,155.58,128.69,128.6,3.8872]
[1726655069393,155.58,128.69,128.61,34.44546788]
[1726655069589,155.58,128.69,128.62,17.93452428]
[1726655069785,155.58,128.69,128.63,17.93452428]
[1726655069991,155.58,128.69,128.61,16.5109436]
[1726655070190,155.58,128.69,128.6,3.8872]
[1726655070489,155.58,128.69,128.61,34.44329423]
[1726655070686,155.58,128.69,128.62,17.93326447]
[1726655070883,155.58,128.69,128.63,17.93326447]
[1726655071091,155.58,128.69,128.6,3.8872]
[1726655071293,155.58,128.69,128.61,34.4405725]
[1726655071494,155.58,128.69,128.62,34.4405725]
[1726655071691,155.58,128.69,128.63,17.93187273]
[1726655071881,155.58,128.69,128.6,3.8872]
[1726655072087,155.58,128.69,128.61,34.44109658]
[1726655072397,155.58,128.69,128.62,34.44109658]
[1726655072695,155.58,128.69,128.62,17.93213477]
[1726655072883,155.58,128.69,128.63,17.93213477]
[1726655073090,155.58,128.69,128.6,3.8872]
[1726655073284,155.58,128.69,128.61,16.5086234]
[1726655073590,155.58,128.69,128.62,34.44016205]
[1726655073791,155.58,128.69,128.63,17.93153865]
[1726655073990,155.58,128.69,128.62,16.5086234]
[1726655074187,155.58,128.69,128.6,3.8872]
[1726655074383,155.58,128.69,128.61,34.44009071]
[1726655074591,155.58,128.69,128.62,34.44009071]
[1726655074787,155.58,128.69,128.63,17.93150298]
[1726655074991,155.58,128.69,128.6,3.8872]
[1726655075194,155.58,128.69,128.61,34.43966965]
[1726655075395,155.58,128.69,128.62,34.43966965]
[1726655075691,155.58,128.69,128.63,17.93127765]
[1726655076187,155.58,128.69,128.6,3.8872]
[1726655076394,155.58,128.69,128.61,38.32715751]
[1726655076697,155.58,128.69,128.62,34.44005751]
[1726655076889,155.58,128.69,128.63,17.93146978]
[1726655077087,155.58,128.69,128.61,3.8871]
[1726655077287,155.58,128.69,128.62,34.4400641]
[1726655077490,155.58,128.69,128.63,17.93145854]
[1726655077693,155.58,128.69,128.61,3.8871]
[1726655077896,155.6,128.7,128.62,38.3266641]
[1726655078099,155.6,128.7,128.62,21.81805854]
[1726655078390,155.6,128.7,128.63,17.93145854]
[1726655078585,155.6,128.7,128.62,3.8866]
[1726655078784,155.6,128.7,128.63,17.9305855]
[1726655078997,155.6,128.7,128.64,17.9305855]
[1726655079396,155.6,128.7,128.62,3.8866]
[1726655079594,155.6,128.7,128.63,17.93076501]
[1726655079795,155.6,128.7,128.64,17.93076501]
[1726655079996,155.6,128.7,128.62,3.8866]
[1726655080197,155.6,128.7,128.63,17.93074696]
[1726655080397,155.6,128.7,128.62,3.8866]
[1726655080595,155.6,128.7,128.63,17.93081509]
[1726655080794,155.6,128.7,128.62,3.8866]
[1726655080995,155.6,128.7,128.63,17.93060258]
[1726655081196,155.6,128.7,128.62,3.8866]
[1726655081396,155.6,128.7,128.63,17.93061709]
[1726655081592,155.6,128.7,128.62,3.8866]
[1726655081793,155.6,128.7,128.63,17.93058142]
[1726655082092,155.6,128.7,128.62,3.8866]
[1726655082398,155.6,128.7,128.63,17.93058141]
[1726655082600,155.6,128.7,128.62,3.8866]
[1726655082800,155.6,128.7,128.63,17.93055924]
[1726655083097,155.6,128.7,128.62,3.8866]
[1726655083590,155.6,128.7,128.63,17.93061274]
[1726655083795,155.6,128.7,128.62,3.8866]
[1726655084004,155.6,128.7,128.63,17.9305988]
[1726655084195,155.6,128.7,128.62,3.8866]
[1726655084398,155.6,128.7,128.63,17.93055621]
[1726655084596,155.6,128.7,128.62,3.8866]
[1726655084795,155.6,128.7,128.63,17.93055621]
[1726655084998,155.6,128.7,128.62,3.8866]
[1726655085298,155.6,128.7,128.63,17.93057403]
[1726655085495,155.6,128.7,128.62,3.8866]
[1726655086091,155.6,128.7,128.61,3.8871]
[1726655086300,155.6,128.7,128.62,17.93097877]
[1726655086803,155.6,128.7,128.61,3.8871]
[1726655086998,155.6,128.7,128.57,5.2833]
[1726655086999,155.6,128.7,128.62,17.93082811]
[1726655087197,155.6,128.7,128.6,3.8872]
[1726655087403,155.6,128.7,128.61,17.93095296]
[1726655087697,155.6,128.7,128.62,17.93095296]
[1726655087898,155.6,128.7,128.6,3.8872]
[1726655088098,155.6,128.7,128.61,17.93104577]
[1726655088301,155.6,128.7,128.62,17.93104577]
[1726655088594,155.6,128.7,128.6,3.8872]
[1726655088802,155.6,128.7,128.61,17.93086348]
[1726655089097,155.6,128.7,128.62,17.93086348]
[1726655089301,155.6,128.7,128.6,3.8872]
[1726655089500,155.6,128.7,128.61,17.93073858]
[1726655089704,155.6,128.7,128.62,17.93073858]
[1726655089890,155.6,128.7,128.6,3.8872]
[1726655090095,155.6,128.7,128.61,17.93102375]
[1726655090299,155.6,128.7,128.62,17.93102375]
[1726655090901,155.6,128.7,128.6,3.8872]
[1726655091102,155.6,128.7,128.61,17.93096299]
[1726655091304,155.6,128.7,128.61,21.81796299]
[1726655091496,155.6,128.7,128.62,17.93096299]
[1726655091804,155.6,128.7,128.61,3.887]
[1726655091997,155.6,128.7,128.62,17.93072364]
[1726655092199,155.6,128.7,128.61,3.887]
[1726655092398,155.6,128.7,128.62,17.93065231]
[1726655092601,155.6,128.7,128.63,17.93065231]
[1726655092900,155.6,128.7,128.61,3.887]
[1726655093100,155.6,128.7,128.62,17.93084989]
[1726655093296,155.6,128.7,128.63,17.93084989]
[1726655093506,155.6,128.7,128.61,3.887]
[1726655093807,155.6,128.7,128.62,17.93084468]
[1726655094003,155.6,128.7,128.63,17.93084468]
[1726655094405,155.6,128.7,128.57,5.2833]
[1726655094608,155.6,128.7,128.61,3.887]
[1726655094906,155.6,128.7,128.62,17.93088625]
[1726655095107,155.6,128.7,128.63,17.93088625]
[1726655095410,155.6,128.7,128.61,3.887]
[1726655095607,155.6,128.7,128.62,17.93077948]
[1726655095909,155.6,128.7,128.63,17.93077948]
[1726655096109,155.6,128.7,128.61,3.887]
[1726655096310,155.6,128.7,128.62,17.93088451]
[1726655096517,155.6,128.7,128.63,17.93088451]
[1726655096699,155.6,128.7,128.61,3.887]
[1726655097001,155.6,128.7,128.62,17.93088451]
[1726655097205,155.6,128.7,128.63,17.93088451]
[1726655097399,155.6,128.7,128.57,5.2833]
[1726655097600,155.6,128.7,128.61,3.8869]
[1726655097800,155.6,128.7,128.58,34.43862928]
[1726655098001,155.6,128.7,128.59,34.43898423]
[1726655098202,155.6,128.7,128.6,38.32608423]
[1726655098407,155.58,128.69,128.61,34.43898423]
[1726655098701,155.58,128.69,128.62,17.93070472]
[1726655098903,155.58,128.69,128.63,17.93070472]
[1726655099099,155.58,128.69,128.57,5.2833]
[1726655099299,155.58,128.69,128.58,34.4387806]
[1726655099503,155.58,128.69,128.57,5.2833]
[1726655099504,155.58,128.69,128.59,34.4387806]
[1726655099702,155.58,128.69,128.61,3.8871]
[1726655100009,155.58,128.69,128.62,17.93078008]
[1726655100311,155.58,128.69,128.63,17.93078008]
[1726655100504,155.58,128.69,128.61,3.8871]
[1726655100705,155.58,128.69,128.62,17.93085975]
[1726655101304,155.58,128.69,128.63,17.93085975]
[1726655101507,155.58,128.69,128.61,3.8871]
[1726655101710,155.58,128.69,128.62,38.3252648]
[1726655102008,155.58,128.7,128.63,17.93061157]
[1726655102207,155.58,128.7,128.62,3.8868]
[1726655102406,155.58,128.7,128.63,17.93062754]
[1726655102603,155.58,128.7,128.62,3.8868]
[1726655102804,155.58,128.7,128.63,17.93082396]
[1726655103007,155.58,128.7,128.62,3.8868]
[1726655103206,155.58,128.7,128.63,17.93060197]
[1726655103509,155.58,128.7,128.57,5.2833]
[1726655103704,155.58,128.7,128.61,3.8868]
[1726655103904,155.58,128.7,128.62,34.43838336]
[1726655104414,155.58,128.7,128.63,17.9305812]
[1726655104612,155.58,128.7,128.61,3.8868]
[1726655104809,155.58,128.7,128.62,17.93060412]
[1726655105004,155.58,128.7,128.63,17.93060412]
[1726655105310,155.58,128.7,128.61,3.8868]
[1726655105609,155.58,128.7,128.62,34.43848858]
[1726655105803,155.58,128.7,128.63,17.93060412]
[1726655106005,155.58,128.7,128.61,3.8868]
[1726655106200,155.58,128.7,128.62,34.43848858]
[1726655106408,155.58,128.7,128.63,17.93060412]
[1726655106605,155.58,128.7,128.61,3.8868]
[1726655106806,155.58,128.7,128.62,34.43853276]
[1726655107107,155.58,128.7,128.63,17.9306483]
[1726655107308,155.58,128.7,128.61,3.8868]
[1726655107505,155.58,128.7,128.62,34.43853276]
[1726655107705,155.58,128.7,128.63,17.9306483]
[1726655108104,155.58,128.7,128.61,3.8868]
[1726655108313,155.58,128.7,128.62,34.43850362]
[1726655108503,155.58,128.7,128.63,17.93061916]
[1726655108700,155.58,128.7,128.57,3.4912]
[1726655108907,155.58,128.7,128.58,17.93431388]
[1726655109206,155.58,128.7,128.59,17.93431388]
[1726655109398,155.58,128.7,128.6,17.93431388]
[1726655109598,155.58,128.7,128.54,1.6953]
[1726655109904,155.58,128.7,128.55,34.4495334]
[1726655110104,155.58,128.7,128.56,38.3380334]
[1726655110415,155.58,128.7,128.57,34.4495334]
[1726655110603,155.58,128.7,128.58,34.4495334]
[1726655110805,155.58,128.7,128.59,17.9361342]
[1726655110999,155.58,128.7,128.56,3.8885]
[1726655111602,155.58,128.7,128.57,16.5131981]
[1726655111806,155.58,128.7,128.58,34.44927608]
[1726655112010,155.58,128.7,128.59,17.93607798]
[1726655112211,155.58,128.7,128.56,3.8885]
[1726655112512,155.58,128.7,128.57,17.93701803]
[1726655112813,155.58,128.7,128.58,17.93701803]
[1726655113012,155.58,128.7,128.59,17.93701803]
[1726655113209,155.58,128.7,128.56,3.8885]
[1726655113406,155.58,128.7,128.57,34.45019481]
[1726655113602,155.58,128.7,128.58,17.93699671]
[1726655113808,155.58,128.7,128.59,17.93699671]
[1726655114009,155.58,128.7,128.56,3.8885]
[1726655114205,155.58,128.7,128.57,34.45015913]
[1726655114400,155.58,128.7,128.58,34.45015913]
[1726655114804,155.58,128.7,128.58,17.93697887]
[1726655115006,155.58,128.7,128.59,17.93697887]
[1726655115806,155.58,128.7,128.56,3.8885]
[1726655116111,155.58,128.7,128.57,34.44989973]
[1726655116819,155.58,128.7,128.58,34.44989973]
[1726655117003,155.58,128.7,128.59,17.93684732]
[1726655117316,155.58,128.7,128.54,1.6953]
[1726655117511,155.58,128.7,128.55,34.44829389]
[1726655117709,155.58,128.7,128.59,3.8874]
[1726655118014,155.58,128.7,128.6,17.93660318]
[1726655118706,155.58,128.7,128.61,17.93660318]